bitfinex-derivatives/quotes_SOLF0:USTF0_20250624
["timestamp","ask_amount","ask_price","bid_price","bid_amount"]
[1750774267925,40.82,144.25,144.18,48.15838806]
[1750774268126,40.82,144.25,144.18,40.82]
[1750774268328,7.34024123,144.23,144.15,2.2711]
[1750774268726,7.34238095,144.23,144.15,2.2711]
[1750774268917,40.82,144.25,144.15,2.2711]
[1750774268918,48.16238095,144.25,144.15,2.2711]
[1750774269622,7.34238095,144.25,144.15,2.2711]
[1750774269817,40.84,144.24,144.15,2.2711]
[1750774270224,6.9316,144.21,144.18,6.9326]
[1750774270427,40.84,144.24,144.15,2.2711]
[1750774270626,7.34238095,144.23,144.15,2.2711]
[1750774270825,48.18238095,144.24,144.15,2.2711]
[1750774271032,48.18238095,144.24,144.16,62.0]
[1750774271924,48.18238095,144.24,144.18,6.9326]
[1750774271925,6.9313,144.21,144.18,6.9326]
[1750774272124,48.18238095,144.24,144.18,6.9326]
[1750774272316,45.2724,144.28,144.18,48.18238095]
[1750774272519,6.929,144.26,144.23,6.93]
[1750774272722,40.84,144.28,144.22,7.34238095]
[1750774273229,6.929,144.26,144.22,7.34238095]
[1750774273829,40.84,144.3,144.24,7.34238095]
[1750774274027,40.84,144.3,144.22,40.84]
[1750774274028,40.84,144.32,144.26,7.34238095]
[1750774274722,6.9267,144.31,144.28,6.9275]
[1750774274914,40.84,144.32,144.26,7.34238095]
[1750774275123,639.62,144.35,144.26,48.18238095]
[1750774275318,6.9262,144.32,144.28,6.9275]
[1750774275520,639.62,144.35,144.28,6.9275]
[1750774275721,639.62,144.35,144.27,62.0]
[1750774275927,639.62,144.35,144.26,48.18238095]
[1750774276427,6.9274,144.29,144.26,55.11088095]
[1750774276829,6.9274,144.29,144.26,48.18238095]
[1750774277919,6.9274,144.29,144.26,55.11118095]
[1750774278116,639.62,144.35,144.26,48.18238095]
[1750774279036,639.62,144.35,144.26,110.18238095]
[1750774280029,6.9268,144.31,144.28,6.9278]
[1750774280220,639.62,144.35,144.26,110.18238095]
[1750774280419,144.34,144.41,144.3,7.34238095]
[1750774280622,40.78,144.38,144.32,7.34238095]
[1750774280818,598.64,144.42,144.26,102.84]
[1750774280819,598.64,144.42,144.34,7.34238095]
[1750774281223,605.98238095,144.42,144.32,48.12238095]
[1750774281432,6.9229,144.39,144.35,6.9242]
[1750774281735,605.98238095,144.42,144.32,48.12238095]
[1750774282130,7.34238095,144.42,144.34,7.34238095]
[1750774282427,40.76,144.42,144.34,7.34238095]
[1750774282736,40.76,144.42,144.36,6.9237]
[1750774282931,40.76,144.42,144.34,7.34238095]
[1750774283837,40.76,144.42,144.34,14.26688095]
[1750774284537,48.10238095,144.42,144.33,6.9253]
[1750774284835,7.34238095,144.41,144.32,7.34238095]
[1750774285035,7.34238095,144.41,144.32,14.26808095]
[1750774285530,7.34238095,144.41,144.28,605.92238095]
[1750774285531,7.34238095,144.37,144.28,605.92238095]
[1750774285726,5.61256622,144.41,144.26,110.10238095]
[1750774285727,7.34238095,144.35,144.26,110.10238095]
[1750774285927,48.10238095,144.35,144.26,110.10238095]
[1750774286132,48.10238095,144.35,144.23,2.2286]
[1750774286133,7.34238095,144.33,144.23,2.2286]
[1750774286334,7.34238095,144.33,144.23,42.9886]
[1750774286636,6.9282,144.28,144.23,42.9886]
[1750774286933,6.9282,144.28,144.24,6.9295]
[1750774287238,48.10238095,144.31,144.23,42.9886]
[1750774287426,48.10238095,144.31,144.24,6.9297]
[1750774287628,6.9287,144.27,144.23,42.9886]
[1750774287828,48.10238095,144.31,144.23,42.9886]
[1750774288233,40.76,144.31,144.23,42.9886]
[1750774288933,40.76,144.31,144.24,6.9295]
[1750774289331,6.9281,144.28,144.25,6.9292]
[1750774289532,40.76,144.31,144.25,6.9292]
[1750774289928,6.9279,144.28,144.25,6.9292]
[1750774290124,40.76,144.31,144.24,6.9295]
[1750774290438,40.76,144.31,144.23,104.9886]
[1750774291134,6.9286,144.27,144.23,111.9184]
[1750774291342,6.9286,144.27,144.23,104.9886]
[1750774291637,40.76,144.31,144.23,104.9886]
[1750774291830,40.76,144.31,144.23,111.9186]
[1750774292744,40.76,144.31,144.23,104.9886]
[1750774292933,6.9281,144.28,144.23,104.9886]
[1750774293133,40.76,144.31,144.23,104.9886]
[1750774293630,6.9291,144.26,144.23,104.9886]
[1750774293831,6.9291,144.26,144.23,71.1588]
[1750774294136,51.99923468,144.31,144.21,45.4322]
[1750774294637,51.99923468,144.31,144.21,52.3631]
[1750774295035,51.99923468,144.31,144.21,4.6722]
[1750774295345,11.23923468,144.28,144.17,47.6922]
[1750774295642,40.76,144.27,144.17,47.6922]
[1750774295842,6.9298,144.24,144.2,6.9317]
[1750774296138,40.76,144.27,144.17,47.6922]
[1750774296537,40.76,144.27,144.21,6.9309]
[1750774297134,6.9299,144.24,144.2,6.9314]
[1750774297940,40.76,144.27,144.17,58.93143468]
[1750774298237,11.23923468,144.25,144.17,6.9322]
[1750774298443,6.9315,144.21,144.17,6.9322]
[1750774298840,11.23923468,144.25,144.17,6.9322]
[1750774299138,6.932,144.2,144.17,6.9322]
[1750774299442,40.78,144.23,144.17,6.9322]
[1750774299840,6.931,144.22,144.17,6.9322]
[1750774300544,6.931,144.22,144.19,6.9321]
[1750774300938,6.9313,144.21,144.18,68.9325]
[1750774301241,6.9313,144.21,144.18,62.0]
[1750774301840,6.9309,144.22,144.19,6.9319]
[1750774302340,6.9316,144.21,144.18,68.9325]
[1750774302545,40.78,144.26,144.18,62.0]
[1750774303045,40.78,144.29,144.2,11.2431639]
[1750774303247,40.78,144.29,144.21,40.78]
[1750774303436,40.78,144.29,144.23,6.93]
[1750774304038,6.929,144.26,144.23,6.93]
[1750774304447,6.929,144.26,144.24,6.9297]
[1750774304643,6.9285,144.27,144.24,6.9297]
[1750774304841,40.78,144.3,144.21,185.02]
[1750774305051,639.48,144.36,144.26,11.2431639]
[1750774305244,40.78,144.36,144.27,2.3076]
[1750774305432,40.78,144.39,144.29,11.2431639]
[1750774305638,40.78,144.39,144.3,40.78]
[1750774305855,40.78,144.39,144.32,11.2431639]
[1750774306041,40.78,144.39,144.33,6.9253]
[1750774306235,6.9238,144.37,144.33,6.9253]
[1750774306835,6.924,144.36,144.33,6.9253]
[1750774307039,40.78,144.41,144.33,6.9253]
[1750774307239,40.78,144.41,144.32,11.2431639]
[1750774307439,6.9231,144.38,144.32,11.2431639]
[1750774307837,40.78,144.41,144.32,11.2431639]
[1750774308042,40.78,144.41,144.34,62.0]
[1750774308347,40.78,144.41,144.34,110.10131173]
[1750774308549,40.78,144.41,144.35,6.7137]
[1750774308847,40.78,144.41,144.35,13.6379]
[1750774309850,40.76,144.44,144.36,7.32131173]
[1750774310145,40.76,144.44,144.35,6.7137]
[1750774310146,40.76,144.44,144.38,7.32131173]
[1750774310351,48.00131173,144.5,144.4,7.32131173]
[1750774310744,48.00131173,144.5,144.41,6.9213]
[1750774311148,7.32131173,144.5,144.41,6.9213]
[1750774311338,40.68,144.49,144.41,6.9213]
[1750774311652,40.68,144.49,144.4,14.24321173]
[1750774312045,6.9204,144.44,144.4,14.24321173]
[1750774312550,40.68,144.49,144.4,7.32131173]
[1750774312754,40.68,144.49,144.42,7.32131173]
[1750774313054,6.9191,144.47,144.42,47.98131173]
[1750774313556,6.9174,144.5,144.44,7.32131173]
[1750774314052,40.66,144.52,144.46,6.9189]
[1750774314257,40.66,144.52,144.44,7.32131173]
[1750774314648,6.9181,144.49,144.45,6.9194]
[1750774314847,11.58161173,144.54,144.44,7.32131173]
[1750774315048,40.66,144.55,144.48,7.32131173]
[1750774315258,40.66,144.57,144.48,7.32131173]
[1750774315454,40.66,144.57,144.47,40.66]
[1750774315651,6.918,144.49,144.44,7.32131173]
[1750774315851,7.32131173,144.53,144.45,62.0]
[1750774315852,40.66,144.53,144.45,62.0]
[1750774316153,40.66,144.53,144.45,68.9196]
[1750774316354,40.66,144.53,144.45,62.0]
[1750774316557,7.32131173,144.54,144.45,62.0]
[1750774316850,6.9176,144.5,144.46,14.24001173]
[1750774317251,40.66,144.54,144.47,40.64]
[1750774317452,40.64,144.57,144.5,7.32131173]
[1750774317846,40.64,144.64,144.54,7.32131173]
[1750774318245,7.32131173,144.63,144.54,7.32131173]
[1750774318562,7.32131173,144.61,144.51,47.4902]
[1750774318758,40.64,144.6,144.51,47.4902]
[1750774319055,7.32131173,144.59,144.51,47.4902]
[1750774319362,47.96131173,144.6,144.51,54.407]
[1750774320058,6.915,144.55,144.51,54.407]
[1750774320256,7.32131173,144.58,144.42,598.18]
[1750774320560,7.32131173,144.56,144.43,191.6067]
[1750774320853,7.32131173,144.54,144.44,7.32131173]
[1750774321060,47.96131173,144.54,144.45,62.0]
[1750774321252,7.32131173,144.52,144.44,7.32131173]
[1750774321653,6.9193,144.46,144.43,6.9667]
[1750774321857,7.32131173,144.5,144.42,638.82]
[1750774321858,47.96131173,144.5,144.42,40.64]
[1750774322157,40.64,144.5,144.42,7.32131173]
[1750774322752,47.96131173,144.53,144.44,7.32131173]
[1750774322952,40.64,144.53,144.44,47.96131173]
[1750774323151,47.96131173,144.53,144.45,2.3572]
[1750774323662,6.9179,144.49,144.45,2.3572]
[1750774323859,47.96131173,144.53,144.45,2.3572]
[1750774324063,40.64,144.53,144.47,7.32131173]
[1750774324253,47.57,144.56,144.47,69.32131173]
[1750774324751,40.64,144.56,144.47,69.32131173]
[1750774324955,2.3896,144.57,144.51,7.32131173]
[1750774325257,597.82,144.58,144.51,7.32131173]
[1750774325457,597.82,144.58,144.48,40.64]
[1750774325757,6.9149,144.55,144.51,6.9165]
[1750774326065,605.14131173,144.58,144.48,40.64]
[1750774326260,597.82,144.58,144.48,40.64]
[1750774326462,6.9157,144.54,144.48,40.64]
[1750774326760,597.82,144.58,144.5,11.19606008]
[1750774326948,597.82,144.58,144.52,6.9161]
[1750774327153,597.82,144.58,144.48,40.64]
[1750774327154,40.64,144.59,144.51,2.2143]
[1750774327661,6.9147,144.56,144.51,2.2143]
[1750774327854,40.64,144.59,144.51,2.2143]
[1750774328048,40.64,144.59,144.52,6.9161]
[1750774328247,40.64,144.59,144.51,2.2143]
[1750774328455,11.19606008,144.58,144.48,40.64]
[1750774328653,6.9161,144.53,144.49,6.9177]
[1750774328957,40.62,144.55,144.47,62.0]
[1750774329256,40.62,144.55,144.48,6.9182]
[1750774329653,40.62,144.55,144.47,62.0]
[1750774330064,6.9159,144.53,144.49,6.9176]
[1750774330263,40.62,144.55,144.47,62.0]
[1750774331157,47.535,144.55,144.52,6.916]
[1750774331356,11.19606008,144.61,144.49,11.19606008]
[1750774331552,40.62,144.6,144.51,6.9166]
[1750774332065,6.9143,144.57,144.53,6.9156]
[1750774332372,6.9143,144.57,144.49,51.81606008]
[1750774332861,6.9145,144.56,144.49,51.81606008]
[1750774333061,40.62,144.6,144.49,51.81606008]
[1750774333267,40.62,144.6,144.52,6.9161]
[1750774333460,40.62,144.6,144.49,51.81606008]
[1750774334463,40.62,144.6,144.49,40.62]
[1750774334767,11.19606008,144.58,144.47,62.0]
[1750774335352,11.19606008,144.58,144.48,6.9178]
[1750774335552,51.81606008,144.6,144.47,73.19606008]
[1750774335957,51.81606008,144.6,144.49,6.9175]
[1750774336470,51.81606008,144.6,144.47,73.19606008]
[1750774336763,40.62,144.59,144.5,11.19606008]
[1750774336965,40.62,144.59,144.5,51.81606008]
[1750774337671,40.62,144.59,144.51,2.2103]
[1750774337967,6.9139,144.58,144.54,6.915]
[1750774338165,40.62,144.59,144.53,11.19606008]
[1750774338362,6.9142,144.57,144.53,11.19606008]
[1750774338760,40.62,144.59,144.55,6.9148]
[1750774338966,47.5333,144.59,144.53,13.38126008]
[1750774339169,40.62,144.59,144.56,6.9144]
[1750774339574,4.2921,144.63,144.54,40.62]
[1750774339763,44.9121,144.63,144.54,40.62]
[1750774340768,40.54,144.62,144.54,40.62]
[1750774341365,40.54,144.62,144.54,47.535]
[1750774341873,6.9139,144.58,144.55,6.9149]
[1750774342265,40.54,144.62,144.55,6.9149]
[1750774342465,40.54,144.62,144.56,6.9143]
[1750774342773,40.54,144.62,144.54,51.81606008]
[1750774343073,6.9143,144.57,144.54,58.73116008]
[1750774343377,51.73606008,144.62,144.53,2.1852]
[1750774343565,51.73606008,144.62,144.42,13.8422]
[1750774343566,11.19606008,144.59,144.47,13.57296008]
[1750774343765,51.73606008,144.61,144.5,11.19606008]
[1750774344161,6.9153,144.55,144.51,6.9167]
[1750774344366,6.9153,144.55,144.48,4.7162]
[1750774344367,40.54,144.57,144.48,4.7162]
[1750774344566,47.47,144.57,144.47,2.3769]
[1750774344760,11.19606008,144.55,144.44,608.99606008]
[1750774344960,4.3857,144.56,144.44,608.99606008]
[1750774345162,4.3857,144.56,144.47,11.19606008]
[1750774345466,4.3857,144.56,144.48,6.9179]
[1750774345765,4.3857,144.56,144.47,11.19606008]
[1750774346067,42.8635,144.56,144.47,51.73606008]
[1750774346382,42.8635,144.56,144.49,7.30691064]
[1750774346672,42.8635,144.56,144.48,64.2286]
[1750774347765,6.9168,144.52,144.48,9.1466]
[1750774348169,42.8635,144.56,144.48,9.1466]
[1750774348373,6.9171,144.51,144.48,9.1466]
[1750774348570,42.8635,144.56,144.48,9.1466]
[1750774348977,6.9167,144.52,144.49,6.9176]
[1750774349277,5.69797653,144.55,144.49,6.9176]
[1750774349472,6.9162,144.53,144.49,6.9176]
[1750774349770,40.54,144.56,144.48,9.53551064]
[1750774350075,6.9153,144.55,144.48,9.53551064]
[1750774350273,6.9153,144.55,144.51,6.9165]
[1750774350676,40.54,144.56,144.48,2.2286]
[1750774350880,5.70827727,144.55,144.49,62.0]
[1750774351071,6.9161,144.53,144.49,62.0]
[1750774351266,5.70840133,144.55,144.49,62.0]
[1750774351470,44.86679606,144.56,144.48,2.2286]
[1750774351778,10.5999812,144.55,144.48,2.2286]
[1750774351978,40.54,144.56,144.49,7.30691064]
[1750774352173,5.71288424,144.55,144.49,7.30691064]
[1750774352373,40.54,144.56,144.51,6.9165]
[1750774352575,12.63302641,144.55,144.49,7.30691064]
[1750774352874,40.54,144.56,144.49,7.30691064]
[1750774353076,40.54,144.56,144.52,6.9159]
[1750774353279,5.72287656,144.55,144.52,6.9159]
[1750774353480,40.54,144.56,144.54,6.9154]
[1750774353672,6.914,144.57,144.54,6.9154]
[1750774353874,5.72744471,144.56,144.54,6.9154]
[1750774354074,40.54,144.58,144.54,6.9154]
[1750774354367,10.62124663,144.57,144.51,7.30691064]
[1750774354577,40.54,144.58,144.53,7.30691064]
[1750774354774,10.64817158,144.57,144.53,7.30691064]
[1750774354979,6.914,144.57,144.54,6.9151]
[1750774355180,5.73743476,144.56,144.5,4.7847]
[1750774355384,14.99821654,144.55,144.53,6.9156]
[1750774355682,40.54,144.58,144.5,4.7847]
[1750774355887,14.99875245,144.57,144.5,4.7847]
[1750774356179,7.30691064,144.55,144.44,638.34]
[1750774356385,55.53875245,144.54,144.45,9.73231064]
[1750774356681,14.99875245,144.53,144.45,9.73231064]
[1750774356980,14.99875245,144.52,144.45,2.4254]
[1750774357177,10.65883337,144.51,144.45,9.73231064]
[1750774357375,40.54,144.54,144.45,9.73231064]
[1750774357578,10.67092677,144.53,144.45,9.73231064]
[1750774357778,10.67092677,144.52,144.45,9.73231064]
[1750774357977,40.54,144.54,144.46,62.0]
[1750774358181,15.02198521,144.53,144.46,62.0]
[1750774358482,6.917,144.51,144.48,6.9179]
[1750774358689,40.54,144.54,144.47,7.30691064]
[1750774358870,21.94070468,144.53,144.47,9.72211064]
[1750774359070,40.54,144.54,144.47,9.72211064]
[1750774359282,10.67319157,144.53,144.47,9.72211064]
[1750774359480,6.9161,144.53,144.51,6.9166]
[1750774359674,40.54,144.54,144.51,6.9166]
[1750774359877,5.75031,144.53,144.51,6.9166]
[1750774360077,40.54,144.54,144.51,6.9166]
[1750774360674,14.23691064,144.6,144.5,7.30691064]
[1750774360881,47.47,144.58,144.5,7.30691064]
[1750774361181,15.02578905,144.57,144.52,6.9161]
[1750774361484,47.47,144.58,144.5,7.30691064]
[1750774361485,15.02578905,144.56,144.5,7.30691064]
[1750774361688,40.54,144.58,144.5,7.30691064]
[1750774361984,10.68412297,144.57,144.52,7.30691064]
[1750774362186,40.54,144.59,144.52,7.30691064]
[1750774362388,15.04092019,144.58,144.52,7.30691064]
[1750774362577,40.54,144.59,144.52,7.30691064]
[1750774362778,10.64584678,144.58,144.55,6.9145]
[1750774362993,40.54,144.59,144.55,6.9145]
[1750774363280,10.64583145,144.58,144.52,7.30691064]
[1750774363585,40.54,144.59,144.5,7.30691064]
[1750774363784,10.66349981,144.58,144.5,7.30691064]
[1750774364080,4.93170452,144.57,144.49,143.76]
[1750774364282,22.32865177,144.56,144.47,2.4152]
[1750774364488,6.917,144.51,144.47,2.4152]
[1750774364681,51.20432173,144.54,144.47,2.4152]
[1750774364881,40.54,144.54,144.47,2.4152]
[1750774365182,47.84714402,144.54,144.47,2.4152]
[1750774365483,47.84714402,144.54,144.45,2.4254]
[1750774365680,47.84714402,144.54,144.43,42.8107]
[1750774365681,7.30714402,144.52,144.43,42.8107]
[1750774365891,5.71629471,144.51,144.43,42.8107]
[1750774366081,40.54,144.5,144.43,42.8107]
[1750774366282,6.9187,144.48,144.43,42.8107]
[1750774366683,6.9187,144.48,144.45,6.9194]
[1750774367892,40.54,144.5,144.41,2.198]
[1750774367893,47.84714402,144.5,144.41,2.198]
[1750774368385,6.9194,144.46,144.43,6.9204]
[1750774368787,47.84714402,144.5,144.41,2.198]
[1750774368995,47.84714402,144.5,144.42,6.9209]
[1750774369486,47.84714402,144.5,144.41,2.198]
[1750774370080,6.9195,144.46,144.43,6.9206]
[1750774370387,40.54,144.5,144.41,9.51256699]
[1750774370888,40.54,144.5,144.42,62.0]
[1750774371383,7.31456699,144.49,144.41,2.198]
[1750774371583,7.31456699,144.47,144.39,4.5479]
[1750774371778,40.5,144.46,144.39,2.2346]
[1750774371981,6.922,144.41,144.38,6.9229]
[1750774372178,7.31456699,144.45,144.37,2.2836]
[1750774372578,6.9219,144.41,144.38,6.9229]
[1750774372783,6.9219,144.41,144.37,2.2836]
[1750774372983,7.31456699,144.45,144.37,9.2071]
[1750774373694,7.31456699,144.45,144.37,2.2836]
[1750774373987,44.841,144.46,144.35,42.749]
[1750774373988,7.31456699,144.43,144.35,42.749]
[1750774374193,7.32502964,144.4,144.31,11.5119]
[1750774374378,40.5,144.39,144.32,62.0]
[1750774374583,47.82502964,144.39,144.32,62.0]
[1750774374891,40.52,144.42,144.33,7.32502964]
[1750774375089,40.52,144.42,144.35,7.32502964]
[1750774375792,6.9224,144.4,144.36,6.9238]
[1750774376194,6.9224,144.4,144.35,7.32502964]
[1750774376391,6.9227,144.39,144.36,6.9238]
[1750774376588,40.52,144.42,144.36,6.9238]
[1750774377391,6.9224,144.4,144.36,6.9238]
[1750774377591,6.9224,144.4,144.37,6.9235]
[1750774377984,6.9224,144.4,144.36,62.0]
[1750774378285,6.9224,144.4,144.36,68.9236]
[1750774378487,6.9226,144.39,144.36,68.9236]
[1750774378692,40.52,144.42,144.36,62.0]
[1750774378885,40.52,144.42,144.35,6.9243]
[1750774379089,40.52,144.42,144.34,2.4246]
[1750774379287,40.52,144.42,144.36,6.9236]
[1750774379887,40.52,144.42,144.37,6.9234]
[1750774380088,40.52,144.42,144.34,2.4246]
[1750774380287,40.52,144.42,144.35,6.9242]
[1750774380693,6.9225,144.4,144.34,2.4246]
[1750774380901,40.52,144.42,144.34,2.4246]
[1750774380902,40.52,144.42,144.35,7.32502964]
[1750774381202,6.9199,144.45,144.39,7.32502964]
[1750774381392,638.14,144.46,144.37,47.84502964]
[1750774381892,645.45992861,144.46,144.38,62.0]
[1750774382698,6.9221,144.4,144.38,62.0]
[1750774383204,6.9218,144.41,144.38,62.0]
[1750774383508,645.45992861,144.46,144.38,62.0]
[1750774383708,638.14,144.46,144.4,6.9218]
[1750774383902,638.14,144.46,144.38,7.31992861]
[1750774384204,6.9206,144.44,144.4,6.9216]
[1750774384403,638.14,144.46,144.4,6.9216]
[1750774384704,638.14,144.46,144.38,11.88062861]
[1750774384912,645.45992861,144.46,144.38,4.5607]
[1750774385504,645.45992861,144.46,144.37,40.52]
[1750774386304,652.38992861,144.46,144.37,47.4433]
[1750774386504,652.38992861,144.46,144.37,40.52]
[1750774386903,6.9217,144.41,144.37,102.52]
[1750774387405,6.9221,144.4,144.37,109.4434]
[1750774387606,645.45992861,144.46,144.38,7.31992861]
[1750774387905,6.9214,144.42,144.38,7.31992861]
[1750774388299,638.14,144.46,144.38,7.31992861]
[1750774388501,6.9205,144.44,144.38,7.31992861]
[1750774388704,2.2356,144.5,144.42,7.31992861]
[1750774388906,42.7556,144.5,144.42,7.31992861]
[1750774389709,2.2356,144.5,144.43,6.9204]
[1750774389900,2.2356,144.5,144.42,7.31992861]
[1750774390091,6.9195,144.46,144.43,6.9204]
[1750774390298,6.9195,144.46,144.42,7.31992861]
[1750774390499,42.7556,144.5,144.42,7.31992861]
[1750774391207,6.9197,144.45,144.42,14.24072861]
[1750774391408,6.9197,144.45,144.37,62.0]
[1750774391409,47.83726301,144.45,144.37,62.0]
[1750774391708,6.9218,144.41,144.38,6.9228]
[1750774392109,6.9221,144.4,144.37,68.9233]
[1750774392305,6.9221,144.4,144.37,62.0]
[1750774392496,47.83726301,144.45,144.37,62.0]
[1750774393110,40.52,144.45,144.37,62.0]
[1750774393608,40.52,144.45,144.34,42.9446]
[1750774393609,47.84092722,144.45,144.34,42.9446]
[1750774393906,47.84092722,144.45,144.34,50.26552722]
[1750774394102,7.32168342,144.43,144.34,2.4246]
[1750774394310,7.32168342,144.41,144.31,47.84168342]
[1750774394505,7.32168342,144.37,144.28,52.55158342]
[1750774394708,47.84168342,144.37,144.28,52.55158342]
[1750774395110,47.84168342,144.37,144.3,6.9265]
[1750774395605,6.9254,144.33,144.29,6.9271]
[1750774396006,6.9254,144.33,144.28,52.55158342]
[1750774396313,40.52,144.37,144.28,52.55158342]
[1750774396518,40.52,144.37,144.3,7.32168342]
[1750774396709,6.9252,144.34,144.31,68.926]
[1750774396911,47.84168342,144.37,144.28,45.2299]
[1750774397307,47.84168342,144.37,144.3,6.9267]
[1750774397508,47.84168342,144.37,144.28,45.2299]
[1750774397816,47.84168342,144.37,144.31,6.9261]
[1750774398116,47.84168342,144.37,144.28,45.2299]
[1750774399403,7.32168342,144.35,144.28,45.2299]
[1750774399714,7.32168342,144.35,144.28,2.3065]
[1750774400816,6.9266,144.31,144.28,2.3065]
[1750774401220,40.48,144.32,144.25,40.54]
[1750774402111,40.48,144.32,144.25,47.86168342]
[1750774402521,40.48,144.35,144.27,7.32168342]
[1750774402719,40.48,144.36,144.27,7.32168342]
[1750774403125,6.9255,144.33,144.3,6.9266]
[1750774403315,40.48,144.36,144.27,7.32168342]
[1750774403830,6.9263,144.32,144.29,6.9271]
[1750774404324,6.9263,144.32,144.29,68.9271]
[1750774404627,6.9257,144.33,144.3,6.9269]
[1750774405232,40.48,144.36,144.29,62.0]
[1750774405729,6.9258,144.33,144.29,62.0]
[1750774405932,40.48,144.36,144.29,62.0]
[1750774406334,6.9262,144.32,144.29,68.9272]
[1750774406521,40.48,144.36,144.29,62.0]
[1750774406718,6.925,144.34,144.29,69.32168342]
[1750774407025,40.48,144.36,144.29,69.32168342]
[1750774407531,40.48,144.39,144.33,7.32168342]
[1750774407718,6.924,144.36,144.33,14.24678342]
[1750774407918,40.48,144.39,144.33,7.32168342]
[1750774408319,6.9239,144.37,144.34,6.9247]
[1750774408726,40.48,144.39,144.33,7.32168342]
[1750774409233,40.48,144.39,144.31,7.32168342]
[1750774409833,40.48,144.42,144.33,7.32168342]
[1750774410033,40.48,144.42,144.33,47.80168342]
[1750774410224,604.85,144.43,144.35,7.32168342]
[1750774410421,638.4,144.43,144.35,7.32168342]
[1750774411537,6.9233,144.38,144.35,14.24588342]
[1750774411837,638.4,144.43,144.35,7.32168342]
[1750774412128,40.48,144.43,144.38,6.9228]
[1750774412330,40.48,144.43,144.35,7.32168342]
[1750774412527,40.48,144.43,144.33,47.80168342]
[1750774412722,6.9234,144.38,144.35,6.9241]
[1750774412929,6.9234,144.38,144.33,47.80168342]
[1750774413740,40.48,144.43,144.35,7.32168342]
[1750774414132,40.48,144.43,144.37,6.9233]
[1750774414332,40.48,144.43,144.35,7.32168342]
[1750774414738,6.9229,144.39,144.34,7.32168342]
[1750774414940,40.48,144.43,144.33,40.48]
[1750774415233,7.32168342,144.42,144.35,6.9242]
[1750774415430,6.9238,144.37,144.34,62.0]
[1750774415838,6.9238,144.37,144.33,40.48]
[1750774415839,6.9246,144.35,144.32,7.32168342]
[1750774416040,40.48,144.39,144.32,7.32168342]
[1750774418240,6.9236,144.37,144.34,6.9246]
[1750774418440,40.48,144.39,144.32,7.32168342]
[1750774418637,40.48,144.39,144.3,54.80188342]
[1750774418835,40.48,144.39,144.32,6.9257]
[1750774418836,6.9247,144.35,144.32,6.9257]
[1750774419134,40.48,144.39,144.31,62.0]
[1750774419335,6.9246,144.35,144.31,62.0]
[1750774420132,6.9246,144.35,144.32,6.9256]
[1750774420534,7.32168342,144.38,144.27,605.56168342]
[1750774420842,7.32168342,144.36,144.26,42.8648]
[1750774421036,6.9264,144.31,144.26,42.8648]
[1750774421236,6.9264,144.31,144.28,6.9276]
[1750774421933,40.48,144.35,144.29,7.32168342]
[1750774422441,49.87118342,144.38,144.29,7.32168342]
[1750774422639,6.9252,144.34,144.29,7.32168342]
[1750774423541,49.87118342,144.38,144.3,62.0]
[1750774423542,6.9247,144.35,144.3,62.0]
[1750774424238,40.48,144.38,144.31,7.32168342]
[1750774424429,40.48,144.38,144.3,40.48]
[1750774424842,40.48,144.38,144.32,6.9257]
[1750774425844,40.48,144.38,144.31,7.32168342]
[1750774426239,6.9237,144.37,144.31,7.32168342]
[1750774426547,6.9237,144.37,144.34,6.9246]